Workbook

Sheet 概要記入ｼｰﾄ
B1: 概要記入シート
B3: 測定者： | C3: 練習
B4: 測定日時： | C4: 2024-12-20
B5: 構造物名： | C5: 練習
B6: 測定箇所： | C6: 練習
B7: 箇所番号： | C7: No1
B8: 天 候： | C8: 晴れ
B9: 気 温： | C9: 20
B10: 湿 度： | C10: 40
B11: 前日の雨の有無： | C11: 有
B12: 試験水の温度： | C12: 20
B13: ｺﾝｸﾘｰﾄ含水率： | C13: 4.5

Sheet 測定値入力シート
A1: 表面吸水試験 測定値入力シート | N1: 現場透水量試験記録 | O1: ① | P1: ② | Q1: ③ | R1: ④ | S1: ⑤ | T1: ⑥ | U1: ⑦ | V1: ⑧ | W1: ⑨ | X1: ⑩ | Y1: ⑪ | Z1: ⑫ | AA1: ⑬ | AB1: ⑭ | AC1: ⑮ | AD1: ⑯ | AE1: ⑰ | AF1: ⑱ | AG1: ⑲
G2: 測定者： | I2: =IF(概要記入ｼｰﾄ!C3="","－",概要記入ｼｰﾄ!C3) -> 練習 | N2: 構造物名：構造物A | P2: 箇所番号：箇所番号1
A3: 構造物名： | C3: =IF(概要記入ｼｰﾄ!C5="","－",概要記入ｼｰﾄ!C5) -> 練習 | G3: 測定日時： | I3: =IF(概要記入ｼｰﾄ!C4="","－",概要記入ｼｰﾄ!C4) -> 2024-12-20 | N3: 測定箇所：測定箇所① | P3: 試験水の温度：20℃ | Q3: ｺﾝｸﾘｰﾄ含水率：4.5％
A4: 測定箇所： | C4: =IF(概要記入ｼｰﾄ!C6="","－",概要記入ｼｰﾄ!C6) -> 練習 | G4: 箇所番号： | I4: =IF(概要記入ｼｰﾄ!C7="","－",概要記入ｼｰﾄ!C7) -> No1 | N4: 測定日時：2017/09/12 | O4: 測定者：測定者① | P4: 試験種類： | Q4: 塗布前
A5: 天 候： | C5: =IF(概要記入ｼｰﾄ!C8="","－",概要記入ｼｰﾄ!C8) -> 晴れ | G5: 前日の雨の有無： | I5: =IF(概要記入ｼｰﾄ!C11="","－",概要記入ｼｰﾄ!C11) -> 有 | N5: 天候：晴れ | O5: 前日の雨の有無：無 | P5: 表面含浸工の施工有無：有
A6: 気 温(℃) ： | C6: =IF(概要記入ｼｰﾄ!C9="","－",概要記入ｼｰﾄ!C9) -> 20 | G6: 湿 度(％) ： | I6: =IF(概要記入ｼｰﾄ!C10="","－",概要記入ｼｰﾄ!C10) -> 40 | N6: 気温：20℃ | O6: 湿度：60％+ | P6: 含浸剤の種類：シラン系
A7: 試験水の温度(℃)： | C7: =IF(概要記入ｼｰﾄ!C12="","－",概要記入ｼｰﾄ!C12) -> 20 | G7: ｺﾝｸﾘｰﾄ含水率(％)： | I7: =IF(概要記入ｼｰﾄ!C13="","－",概要記入ｼｰﾄ!C13) -> 4.5 | N7: 測定時間 | O7: 測定時間 | P7: 測定値 | Q7: 追加 給水量 | R7: 追加 給水量 （累積） | S7: 吸水量 （累積） | V7: ⑦ | W7: A | X7: ⑤ | Y7: ⑧⑨ | Z7: ⑧⑩ | AC7: ⑦ | AD7: ⑪⑫⑭ | AE7: ⑪⑫⑭ | AF7: ⑮⑯ | AG7: ⑮⑰
N8: 秒 | O8: 分 | P8: ｍｌ | Q8: ｍｌ | R8: ｍｌ | S8: ｍｌ | U8: 番号
A9: 測定時間 | D9: 測定時間 | G9: 測定値 | J9: 追加 給水量 | N9: 0 | O9: 00:00:00 | P9: =IF(G11="","",G11) -> 0 | Q9: =IF(J11="",0,J11) -> 0 | R9: 0 | S9: =IF(P9="","",P9+R9) -> 0 | U9: 0 | V9: 0 | W9: 0 | X9: =N9 -> 0 | Y9: 0 | Z9: 0 | AB9: 0 | AC9: 0 | AD9: 0 | AE9: 0 | AF9: 0 | AG9: 0
A10: 秒 | D10: 分 | G10: ｍｌ | J10: ｍｌ | N10: 15 | O10: 05:00:15 | P10: =IF(G12="","",G12) -> 0 | Q10: =IF(J12="",0,J12) -> 0 | R10: =R9+Q10 -> 0 | S10: =IF(P10="","",P10+R10) -> 0 | U10: 1 | V10: =IF(P10="","",U10) -> 1 | W10: =IF(P10="","",N10) -> 15 | X10: =IF(P10="","",S10) -> 0 | Y10: =IF(COUNT(V$10:V$42)<ROW(W1),"",INDEX(W$10:W$42,SMALL(V$10:V$42,ROW(W1)))) -> 15 | Z10: =IF(COUNT(V$10:V$42)<ROW(X1),"",INDEX(X$10:X$42,SMALL(V$10:V$42,ROW(X1)))) -> 0 | AB10: 15 | AC10: =IF(AD10="","",U10) ->  | AD10: =IF(AE10="","",IF(ISERROR(VLOOKUP(AB10,$Y$10:$Z$42,1,0)),"",VLOOKUP(AB10,$Y$10:$Z$42,1,0))) ->  | AE10: =IF(IF(ISERROR(VLOOKUP(AB10,$Y$10:$Z$42,2,0)),"",VLOOKUP(AB10,$Y$10:$Z$42,2,0))=0,"",IF(ISERROR(VLOOKUP(AB10,$Y$10:$Z$42,2,0)),"",VLOOKUP(AB10,$Y$10:$Z$42,2,0))) ->  | AF10: =IF(COUNT(AC$10:AC$42)<ROW(AD1),"",INDEX(AD$10:AD$42,SMALL(AC$10:AC$42,ROW(AD1)))) -> 60 | AG10: =IF(COUNT(AC$10:AC$42)<ROW(AE1),"",INDEX(AE$10:AE$42,SMALL(AC$10:AC$42,ROW(AE1)))) -> 0.65
A11: 0 | D11: 00:00:00 | G11: 0 | N11: 30 | O11: 06:00:30 | P11: 0 | Q11: 0 | R11: =R10+Q11 -> 0 | S11: =IF(P11="","",P11+R11) -> 0 | U11: 2 | V11: =IF(P11="","",U11) -> 2 | W11: 30 | X11: =IF(P11="","",S11) -> 0 | Y11: =IF(COUNT(V$10:V$42)<ROW(W2),"",INDEX(W$10:W$42,SMALL(V$10:V$42,ROW(W2)))) -> 30 | Z11: =IF(COUNT(V$10:V$42)<ROW(X2),"",INDEX(X$10:X$42,SMALL(V$10:V$42,ROW(X2)))) -> 0 | AB11: 30 | AC11: =IF(AD11="","",U11) ->  | AD11: =IF(AE11="","",IF(ISERROR(VLOOKUP(AB11,$Y$10:$Z$42,1,0)),"",VLOOKUP(AB11,$Y$10:$Z$42,1,0))) ->  | AE11: =IF(IF(ISERROR(VLOOKUP(AB11,$Y$10:$Z$42,2,0)),"",VLOOKUP(AB11,$Y$10:$Z$42,2,0))=0,"",IF(ISERROR(VLOOKUP(AB11,$Y$10:$Z$42,2,0)),"",VLOOKUP(AB11,$Y$10:$Z$42,2,0))) ->  | AF11: =IF(COUNT(AC$10:AC$42)<ROW(AD2),"",INDEX(AD$10:AD$42,SMALL(AC$10:AC$42,ROW(AD2)))) -> 120 | AG11: =IF(COUNT(AC$10:AC$42)<ROW(AE2),"",INDEX(AE$10:AE$42,SMALL(AC$10:AC$42,ROW(AE2)))) -> 0.9
A12: 15 | D12: 05:00:15 | G12: 0 | N12: 45 | O12: 07:00:45 | P12: 0 | Q12: 0 | R12: 0 | S12: 0 | U12: 3 | V12: =IF(P12="","",U12) -> 3 | W12: =IF(P12="","",N12) -> 45 | X12: =IF(P12="","",S12) -> 0 | Y12: =IF(COUNT(V$10:V$42)<ROW(W3),"",INDEX(W$10:W$42,SMALL(V$10:V$42,ROW(W3)))) -> 45 | Z12: =IF(COUNT(V$10:V$42)<ROW(X3),"",INDEX(X$10:X$42,SMALL(V$10:V$42,ROW(X3)))) -> 0 | AB12: 45 | AC12: =IF(AD12="","",U12) ->  | AF12: =IF(COUNT(AC$10:AC$42)<ROW(AD3),"",INDEX(AD$10:AD$42,SMALL(AC$10:AC$42,ROW(AD3)))) -> 180 | AG12: 1.05
A13: 30 | D13: 06:00:30 | G13: 0 | N13: 60 | O13: 05:01:00 | P13: 0.65 | Q13: 0 | R13: 0 | S13: 0.65 | U13: 4 | V13: 4 | W13: 60 | X13: =IF(P13="","",S13) -> 0.65 | Y13: =IF(COUNT(V$10:V$42)<ROW(W4),"",INDEX(W$10:W$42,SMALL(V$10:V$42,ROW(W4)))) -> 60 | Z13: 0.65 | AB13: 60 | AC13: =IF(AD13="","",U13) -> 4 | AD13: 60 | AE13: 0.65 | AF13: 240 | AG13: 1.18
A14: 45 | D14: 07:00:45 | G14: 0 | N14: 120 | O14: 06:02:00 | P14: 0.9 | Q14: 0 | R14: 0 | S14: 0.9 | U14: 5 | V14: 5 | W14: 120 | X14: 0.9 | Y14: 120 | Z14: 0.9 | AB14: 120 | AC14: 5 | AD14: 120 | AE14: 0.9 | AF14: 300 | AG14: 1.3
A15: 60 | D15: 05:01:00 | G15: 0.65 | N15: 180 | O15: 07:03:00 | P15: 0.05 | Q15: 1 | R15: 1 | S15: 1.05 | U15: 6 | V15: 6 | W15: 180 | X15: 1.05 | Y15: 180 | Z15: 1.05 | AB15: 180 | AC15: 6 | AD15: 180 | AE15: 1.05 | AF15: 360 | AG15: 1.4
A16: 120 | D16: 05:02:00 | G16: 0.9 | N16: 240 | O16: 08:04:00 | P16: 0.18 | Q16: 0 | R16: 1 | S16: 1.18 | U16: 7 | V16: 7 | W16: 240 | X16: 1.18 | Y16: 240 | Z16: 1.18 | AB16: 240 | AC16: 7 | AD16: 240 | AE16: 1.18 | AF16: 420 | AG16: 1.48
A17: 180 | D17: 05:03:00 | G17: 0.05 | J17: 1 | N17: 300 | O17: 09:05:00 | P17: 0.3 | Q17: 0 | R17: 1 | S17: 1.3 | U17: 8 | V17: 8 | W17: 300 | X17: 1.3 | Y17: 300 | Z17: 1.3 | AB17: 300 | AC17: 8 | AD17: 300 | AE17: 1.3 | AF17: 480 | AG17: 1.57
A18: 240 | D18: 05:04:00 | G18: 0.18 | N18: 360 | O18: 10:06:00 | P18: 0.4 | Q18: 0 | R18: 1 | S18: 1.4 | U18: 9 | V18: 9 | W18: =IF(P18="","",N18) -> 360 | X18: 1.4 | Y18: 360 | Z18: 1.4 | AB18: 360 | AC18: 9 | AD18: 360 | AE18: 1.4 | AF18: 540 | AG18: 1.67
A19: 300 | D19: 05:05:00 | G19: 0.3 | N19: 420 | O19: 11:07:00 | P19: 0.48 | Q19: 0 | R19: 1 | S19: 1.48 | U19: 10 | V19: =IF(P19="","",U19) -> 10 | W19: 420 | X19: 1.48 | Y19: =IF(COUNT(V$10:V$42)<ROW(W10),"",INDEX(W$10:W$42,SMALL(V$10:V$42,ROW(W10)))) -> 420 | Z19: 1.48 | AB19: 420 | AC19: 10 | AD19: 420 | AE19: 1.48 | AF19: 600 | AG19: 1.75
A20: 360 | D20: 05:06:00 | G20: 0.4 | N20: 480 | O20: 12:08:00 | P20: 0.57 | Q20: 0 | R20: 1 | S20: 1.57 | U20: 11 | V20: 11 | W20: 480 | X20: 1.57 | Y20: 480 | Z20: 1.57 | AB20: 480 | AC20: 11 | AD20: 480 | AE20: 1.57
A21: 420 | D21: 05:07:00 | G21: 0.48 | N21: 540 | O21: 13:09:00 | P21: 0.67 | Q21: 0 | R21: 1 | S21: 1.67 | U21: 12 | V21: 12 | W21: 540 | X21: 1.67 | Y21: 540 | Z21: 1.67 | AB21: 540 | AC21: 12 | AD21: 540 | AE21: 1.67
A22: 480 | D22: 05:08:00 | G22: 0.57 | N22: 600 | O22: 14:10:00 | P22: 0.75 | Q22: 0 | R22: 1 | S22: 1.75 | U22: 13 | V22: 13 | W22: 600 | X22: 1.75 | Y22: 600 | Z22: 1.75 | AB22: 600 | AC22: 13 | AD22: 600 | AE22: 1.75
A23: 540 | D23: 05:09:00 | G23: 0.67 | N23: 660 | O23: 15:11:00 | Q23: 0 | R23: 1 | U23: 14
A24: 600 | D24: 05:10:00 | G24: 0.75 | N24: 720 | O24: 16:12:00 | Q24: 0 | R24: 1 | U24: 15
A25: 660 | N25: 780 | O25: 17:13:00 | Q25: 0 | R25: 1 | U25: 16
A26: 720 | N26: 840 | O26: 18:14:00 | Q26: 0 | R26: 1 | U26: 17
A27: 780 | N27: 900 | O27: 19:15:00 | Q27: 0 | R27: 1 | U27: 18
A28: 840 | N28: 960 | O28: 20:16:00 | Q28: 0 | R28: 1 | U28: 19
A29: 900 | N29: 1020 | O29: 21:17:00 | Q29: 0 | R29: 1 | U29: 20
A30: 960 | N30: 1080 | O30: 22:18:00 | Q30: 0 | R30: 1 | U30: 21
A31: 1020 | N31: 1140 | O31: 23:19:00 | Q31: 0 | R31: 1 | U31: 22
A32: 1080 | N32: 1200 | O32: 1.013888889 | Q32: 0 | R32: 1 | U32: 23
A33: 1140 | N33: 1260 | O33: 1.05625 | Q33: 0 | R33: 1 | U33: 24
A34: 1200 | N34: 1320 | O34: 1.098611111 | Q34: 0 | R34: 1 | U34: 25
A35: 1260 | N35: 1380 | O35: 1.140972222 | Q35: 0 | R35: 1 | U35: 26
A36: 1320 | N36: 1440 | O36: 1.183333333 | Q36: 0 | R36: 1 | U36: 27
A37: 1380 | N37: 1500 | O37: 1.225694444 | Q37: 0 | R37: 1 | U37: 28
A38: 1440 | N38: 1560 | O38: 1.268055556 | Q38: 0 | R38: 1 | U38: 29
A39: 1500 | N39: 1620 | O39: 1.310416667 | Q39: 0 | R39: 1 | U39: 30
A40: 1560 | N40: 1680 | O40: 1.352777778 | Q40: 0 | R40: 1 | S40: =IF(P40="","",P40+R40) ->  | U40: 31
A41: 1620 | N41: 1740 | O41: 1.395138889 | Q41: 0 | R41: 1 | U41: 32
A42: 1680 | N42: 1800 | O42: 1.4375 | Q42: 0 | R42: 1 | U42: 33
A43: 1740 | N43: 注意1：黄色部分は必ず記入、薄いオレンジ部分は任意記入ですができるだけ記入してください。
A44: 1800 | N44: 注意2：測定値は追加給水量の補正を行わず読み値を記入、追加給水量は追加を行った箇所に追加量を記入してください。
A45: 注意1：黄色部分は必ず記入してください。 | N45: 注意3：水色部分は、任意で測定してください。省略してもかまいません。
A46: 注意2：測定値は追加給水量の補正を行わず読み値を記入、追加給水量は追加を行った箇所に追加量を記入してください。 | N46: 注意4：P600を求める場合は必ず600秒時の値を記入してください。600秒の値がないと吸水速度を計算できません。
A47: 注意3：水色部分は、任意で測定してください。省略してもかまいません。 | N47: 注意5：P1800を求める場合は必ず1800秒時の値を記入してください。1800秒の値がないと吸水速度を計算できません。
N48: 注意6：青文字部分の、：を含めた左側部分は消さないでください。：以降に任意で情報を入力してください。 間違えて消してしまった場合は「入力情報クリア」ボタンを押すと初期化されます。
N90: 構造物名：構造物A | P90: 箇所番号：箇所番号1
N91: 測定箇所：測定箇所① | P91: 試験水の温度：20℃ | Q91: ｺﾝｸﾘｰﾄ含水率：4.5％
N92: 測定日時：2017/09/12 | O92: 測定者：測定者① | P92: 試験種類： | Q92: 塗布前
N93: 天候：晴れ | O93: 前日の雨の有無：無 | P93: 表面含浸工の施工有無：有
N94: 気温：20℃ | O94: 湿度：60％+ | P94: 含浸剤の種類：シラン系
N100: 構造物名： | P100: 箇所番号：
N101: 測定箇所： | P101: 試験水の温度： | Q101: ｺﾝｸﾘｰﾄ含水率：
N102: 測定日時： | O102: 測定者： | P102: 試験種類：
N103: 天候： | O103: 前日の雨の有無： | P103: 表面含浸工の施工有無：
N104: 気温： | O104: 湿度： | P104: 含浸剤の種類：
B127: 0
B131: 1.4
B132: 1.8
B133: 2
B134: 2.2
B135: 2.4
B136: 2.6
B137: 2.7
B138: 2.85
B139: 1.98 | E139: 1
B140: 2.04
N256: 0
N258: 0.6
N259: 1
N260: 1.4
N261: 1.8
N262: 2
N263: 2.2
N264: 2.4
N265: 2.6
N266: 2.7
N267: 2.85
N268: 1.98 | O268: 1
N269: 2.04
N270: 2.1
N271: 2.2
N272: 2.3
N273: 2.4
N274: 2.5
N275: 2.55
N276: 2.6
N277: 2.65
N278: 2.7
N279: 1.8 | O279: 1
N280: 1.9
N281: 1.98
N282: 2.05
N283: 2.1
N284: 2.15
N285: 2.2
N286: 2.3
N287: 2.35
N288: 2.4
N289: 2.45

Sheet 600秒時の吸水速度計算結果
A1: 表面吸水試験によるコンクリート表層品質の評価結果
F2: 測定者： | H2: =測定値入力シート!I2 -> 練習
A3: 構造物名： | C3: =測定値入力シート!C3 -> 練習 | F3: 測定日時： | H3: =測定値入力シート!I3 -> 2024-12-20
A4: 測定箇所： | C4: =測定値入力シート!C4 -> 練習 | F4: 箇所番号： | H4: =測定値入力シート!I4 -> No1
A5: 天 候： | C5: =測定値入力シート!C5 -> 晴れ | F5: 前日の雨の有無： | H5: =測定値入力シート!I5 -> 有
A6: 気 温(℃) ： | C6: =測定値入力シート!C6 -> 20 | F6: 湿 度(%)： | H6: =測定値入力シート!I6 -> 40
A7: 試験水の温度(℃)： | C7: =測定値入力シート!C7 -> 20 | F7: ｺﾝｸﾘｰﾄ含水率(%)： | H7: =測定値入力シート!I7 -> 4.5
A9: 測定時間 | B9: 実測累積 吸水量 | C9: 単位面積 当たりの 累積吸水量 | D9: 吸水速度
A10: 秒 | B10: ｍｌ | C10: ml/m2 | D10: ml/m2/sec
A11: 0 | B11: 0 | C11: 0 | G11: 吸水速度（ml/m²/s) | L11: =A11 -> 0 | M11: 0 | N11: 0
A12: 15 | B12: =IF(測定値入力シート!G12=0,0,IF(ISERROR(VLOOKUP(A12,計算600秒①!$D$5:'計算600秒①'!$J$37,2,0)),NA(),VLOOKUP(A12,計算600秒①!$D$5:'計算600秒①'!$J$37,2,0))) -> 0 | C12: =IF(B12=0,0,IF(ISERROR(VLOOKUP(A12,計算600秒①!$D$5:'計算600秒①'!$J$37,3,0)),NA(),VLOOKUP(A12,計算600秒①!$D$5:'計算600秒①'!$J$37,3,0))) -> 0 | D12: =IF(ISERROR(VLOOKUP(A12,計算600秒①!$D$5:'計算600秒①'!$J$37,7,0)),NA(),VLOOKUP(A12,計算600秒①!$D$5:'計算600秒①'!$J$37,7,0)) ->  | G12: 実測累積吸水量（ml) | L12: =A12 -> 15 | M12: =IF(B12=0,NA(),B12) ->  | N12: =IF(C12=0,NA(),C12) -> 
A13: 30 | B13: =IF(測定値入力シート!G13=0,0,IF(ISERROR(VLOOKUP(A13,計算600秒①!$D$5:'計算600秒①'!$J$37,2,0)),NA(),VLOOKUP(A13,計算600秒①!$D$5:'計算600秒①'!$J$37,2,0))) -> 0 | C13: =IF(B13=0,0,IF(ISERROR(VLOOKUP(A13,計算600秒①!$D$5:'計算600秒①'!$J$37,3,0)),NA(),VLOOKUP(A13,計算600秒①!$D$5:'計算600秒①'!$J$37,3,0))) -> 0 | D13: =IF(ISERROR(VLOOKUP(A13,計算600秒①!$D$5:'計算600秒①'!$J$37,7,0)),NA(),VLOOKUP(A13,計算600秒①!$D$5:'計算600秒①'!$J$37,7,0)) ->  | G13: 1m ²当たりの累積吸水量（ml) | L13: 30 | M13: =IF(B13=0,NA(),B13) ->  | N13: =IF(C13=0,NA(),C13) -> 
A14: 45 | B14: =IF(測定値入力シート!G14=0,0,IF(ISERROR(VLOOKUP(A14,計算600秒①!$D$5:'計算600秒①'!$J$37,2,0)),NA(),VLOOKUP(A14,計算600秒①!$D$5:'計算600秒①'!$J$37,2,0))) -> 0 | C14: =IF(B14=0,0,IF(ISERROR(VLOOKUP(A14,計算600秒①!$D$5:'計算600秒①'!$J$37,3,0)),NA(),VLOOKUP(A14,計算600秒①!$D$5:'計算600秒①'!$J$37,3,0))) -> 0 | D14: =IF(ISERROR(VLOOKUP(A14,計算600秒①!$D$5:'計算600秒①'!$J$37,7,0)),NA(),VLOOKUP(A14,計算600秒①!$D$5:'計算600秒①'!$J$37,7,0)) ->  | L14: 45
A15: 60 | B15: =IF(測定値入力シート!G15=0,0,IF(ISERROR(VLOOKUP(A15,計算600秒①!$D$5:'計算600秒①'!$J$37,2,0)),NA(),VLOOKUP(A15,計算600秒①!$D$5:'計算600秒①'!$J$37,2,0))) -> 0.65 | C15: =IF(B15=0,0,IF(ISERROR(VLOOKUP(A15,計算600秒①!$D$5:'計算600秒①'!$J$37,3,0)),NA(),VLOOKUP(A15,計算600秒①!$D$5:'計算600秒①'!$J$37,3,0))) -> 129.3133913 | D15: =IF(ISERROR(VLOOKUP(A15,計算600秒①!$D$5:'計算600秒①'!$J$37,7,0)),NA(),VLOOKUP(A15,計算600秒①!$D$5:'計算600秒①'!$J$37,7,0)) -> 0.92 | L15: 60 | M15: 0.65 | N15: 129.3133913
A16: 120 | B16: =IF(測定値入力シート!G16=0,0,IF(ISERROR(VLOOKUP(A16,計算600秒①!$D$5:'計算600秒①'!$J$37,2,0)),NA(),VLOOKUP(A16,計算600秒①!$D$5:'計算600秒①'!$J$37,2,0))) -> 0.9 | C16: =IF(B16=0,0,IF(ISERROR(VLOOKUP(A16,計算600秒①!$D$5:'計算600秒①'!$J$37,3,0)),NA(),VLOOKUP(A16,計算600秒①!$D$5:'計算600秒①'!$J$37,3,0))) -> 179.049311 | D16: =IF(ISERROR(VLOOKUP(A16,計算600秒①!$D$5:'計算600秒①'!$J$37,7,0)),NA(),VLOOKUP(A16,計算600秒①!$D$5:'計算600秒①'!$J$37,7,0)) -> 0.62 | L16: 120 | M16: 0.9 | N16: 179.049311
A17: 180 | B17: =IF(測定値入力シート!G17=0,0,IF(ISERROR(VLOOKUP(A17,計算600秒①!$D$5:'計算600秒①'!$J$37,2,0)),NA(),VLOOKUP(A17,計算600秒①!$D$5:'計算600秒①'!$J$37,2,0))) -> 1.05 | C17: =IF(B17=0,0,IF(ISERROR(VLOOKUP(A17,計算600秒①!$D$5:'計算600秒①'!$J$37,3,0)),NA(),VLOOKUP(A17,計算600秒①!$D$5:'計算600秒①'!$J$37,3,0))) -> 208.8908628 | D17: =IF(ISERROR(VLOOKUP(A17,計算600秒①!$D$5:'計算600秒①'!$J$37,7,0)),NA(),VLOOKUP(A17,計算600秒①!$D$5:'計算600秒①'!$J$37,7,0)) -> 0.49 | L17: 180 | M17: 1.05 | N17: 208.8908628
A18: 240 | B18: =IF(測定値入力シート!G18=0,0,IF(ISERROR(VLOOKUP(A18,計算600秒①!$D$5:'計算600秒①'!$J$37,2,0)),NA(),VLOOKUP(A18,計算600秒①!$D$5:'計算600秒①'!$J$37,2,0))) -> 1.18 | C18: =IF(B18=0,0,IF(ISERROR(VLOOKUP(A18,計算600秒①!$D$5:'計算600秒①'!$J$37,3,0)),NA(),VLOOKUP(A18,計算600秒①!$D$5:'計算600秒①'!$J$37,3,0))) -> 234.7535411 | D18: =IF(ISERROR(VLOOKUP(A18,計算600秒①!$D$5:'計算600秒①'!$J$37,7,0)),NA(),VLOOKUP(A18,計算600秒①!$D$5:'計算600秒①'!$J$37,7,0)) -> 0.41 | L18: 240 | M18: 1.18 | N18: 234.7535411
A19: 300 | B19: =IF(測定値入力シート!G19=0,0,IF(ISERROR(VLOOKUP(A19,計算600秒①!$D$5:'計算600秒①'!$J$37,2,0)),NA(),VLOOKUP(A19,計算600秒①!$D$5:'計算600秒①'!$J$37,2,0))) -> 1.3 | C19: =IF(B19=0,0,IF(ISERROR(VLOOKUP(A19,計算600秒①!$D$5:'計算600秒①'!$J$37,3,0)),NA(),VLOOKUP(A19,計算600秒①!$D$5:'計算600秒①'!$J$37,3,0))) -> 258.6267825 | D19: =IF(ISERROR(VLOOKUP(A19,計算600秒①!$D$5:'計算600秒①'!$J$37,7,0)),NA(),VLOOKUP(A19,計算600秒①!$D$5:'計算600秒①'!$J$37,7,0)) -> 0.36 | L19: 300 | M19: 1.3 | N19: 258.6267825
A20: 360 | B20: =IF(測定値入力シート!G20=0,0,IF(ISERROR(VLOOKUP(A20,計算600秒①!$D$5:'計算600秒①'!$J$37,2,0)),NA(),VLOOKUP(A20,計算600秒①!$D$5:'計算600秒①'!$J$37,2,0))) -> 1.4 | C20: =IF(B20=0,0,IF(ISERROR(VLOOKUP(A20,計算600秒①!$D$5:'計算600秒①'!$J$37,3,0)),NA(),VLOOKUP(A20,計算600秒①!$D$5:'計算600秒①'!$J$37,3,0))) -> 278.5211504 | D20: =IF(ISERROR(VLOOKUP(A20,計算600秒①!$D$5:'計算600秒①'!$J$37,7,0)),NA(),VLOOKUP(A20,計算600秒①!$D$5:'計算600秒①'!$J$37,7,0)) -> 0.33 | L20: 360 | M20: 1.4 | N20: 278.5211504
A21: 420 | B21: =IF(測定値入力シート!G21=0,0,IF(ISERROR(VLOOKUP(A21,計算600秒①!$D$5:'計算600秒①'!$J$37,2,0)),NA(),VLOOKUP(A21,計算600秒①!$D$5:'計算600秒①'!$J$37,2,0))) -> 1.48 | C21: =IF(B21=0,0,IF(ISERROR(VLOOKUP(A21,計算600秒①!$D$5:'計算600秒①'!$J$37,3,0)),NA(),VLOOKUP(A21,計算600秒①!$D$5:'計算600秒①'!$J$37,3,0))) -> 294.4366447 | D21: =IF(ISERROR(VLOOKUP(A21,計算600秒①!$D$5:'計算600秒①'!$J$37,7,0)),NA(),VLOOKUP(A21,計算600秒①!$D$5:'計算600秒①'!$J$37,7,0)) -> 0.3 | L21: 420 | M21: 1.48 | N21: 294.4366447
A22: 480 | B22: =IF(測定値入力シート!G22=0,0,IF(ISERROR(VLOOKUP(A22,計算600秒①!$D$5:'計算600秒①'!$J$37,2,0)),NA(),VLOOKUP(A22,計算600秒①!$D$5:'計算600秒①'!$J$37,2,0))) -> 1.57 | C22: =IF(B22=0,0,IF(ISERROR(VLOOKUP(A22,計算600秒①!$D$5:'計算600秒①'!$J$37,3,0)),NA(),VLOOKUP(A22,計算600秒①!$D$5:'計算600秒①'!$J$37,3,0))) -> 312.3415758 | D22: =IF(ISERROR(VLOOKUP(A22,計算600秒①!$D$5:'計算600秒①'!$J$37,7,0)),NA(),VLOOKUP(A22,計算600秒①!$D$5:'計算600秒①'!$J$37,7,0)) -> 0.28 | L22: 480 | M22: 1.57 | N22: 312.3415758
A23: 540 | B23: =IF(測定値入力シート!G23=0,0,IF(ISERROR(VLOOKUP(A23,計算600秒①!$D$5:'計算600秒①'!$J$37,2,0)),NA(),VLOOKUP(A23,計算600秒①!$D$5:'計算600秒①'!$J$37,2,0))) -> 1.67 | C23: =IF(B23=0,0,IF(ISERROR(VLOOKUP(A23,計算600秒①!$D$5:'計算600秒①'!$J$37,3,0)),NA(),VLOOKUP(A23,計算600秒①!$D$5:'計算600秒①'!$J$37,3,0))) -> 332.2359437 | D23: =IF(ISERROR(VLOOKUP(A23,計算600秒①!$D$5:'計算600秒①'!$J$37,7,0)),NA(),VLOOKUP(A23,計算600秒①!$D$5:'計算600秒①'!$J$37,7,0)) -> 0.26 | L23: 540 | M23: 1.67 | N23: 332.2359437
A24: 600 | B24: =IF(測定値入力シート!G24=0,0,IF(ISERROR(VLOOKUP(A24,計算600秒①!$D$5:'計算600秒①'!$J$37,2,0)),NA(),VLOOKUP(A24,計算600秒①!$D$5:'計算600秒①'!$J$37,2,0))) -> 1.75 | C24: =IF(B24=0,0,IF(ISERROR(VLOOKUP(A24,計算600秒①!$D$5:'計算600秒①'!$J$37,3,0)),NA(),VLOOKUP(A24,計算600秒①!$D$5:'計算600秒①'!$J$37,3,0))) -> 348.151438 | D24: =IF(ISERROR(VLOOKUP(A24,計算600秒①!$D$5:'計算600秒①'!$J$37,7,0)),NA(),VLOOKUP(A24,計算600秒①!$D$5:'計算600秒①'!$J$37,7,0)) -> 0.24 | L24: 600 | M24: 1.75 | N24: 348.151438
A25: 660 | B25: =IF(ISERROR(VLOOKUP(A25,計算600秒①!$D$5:'計算600秒①'!$J$37,2,0)),NA(),VLOOKUP(A25,計算600秒①!$D$5:'計算600秒①'!$J$37,2,0)) ->  | C25: =IF(B25=0,0,IF(ISERROR(VLOOKUP(A25,計算600秒①!$D$5:'計算600秒①'!$J$37,3,0)),NA(),VLOOKUP(A25,計算600秒①!$D$5:'計算600秒①'!$J$37,3,0))) ->  | D25: =IF(ISERROR(VLOOKUP(A25,計算600秒①!$D$5:'計算600秒①'!$J$37,7,0)),NA(),VLOOKUP(A25,計算600秒①!$D$5:'計算600秒①'!$J$37,7,0)) -> 
A26: 720 | B26: =IF(ISERROR(VLOOKUP(A26,計算600秒①!$D$5:'計算600秒①'!$J$37,2,0)),NA(),VLOOKUP(A26,計算600秒①!$D$5:'計算600秒①'!$J$37,2,0)) ->  | C26: =IF(B26=0,0,IF(ISERROR(VLOOKUP(A26,計算600秒①!$D$5:'計算600秒①'!$J$37,3,0)),NA(),VLOOKUP(A26,計算600秒①!$D$5:'計算600秒①'!$J$37,3,0))) ->  | D26: =IF(ISERROR(VLOOKUP(A26,計算600秒①!$D$5:'計算600秒①'!$J$37,7,0)),NA(),VLOOKUP(A26,計算600秒①!$D$5:'計算600秒①'!$J$37,7,0)) -> 
A27: 780 | B27: =IF(ISERROR(VLOOKUP(A27,計算600秒①!$D$5:'計算600秒①'!$J$37,2,0)),NA(),VLOOKUP(A27,計算600秒①!$D$5:'計算600秒①'!$J$37,2,0)) ->  | C27: =IF(B27=0,0,IF(ISERROR(VLOOKUP(A27,計算600秒①!$D$5:'計算600秒①'!$J$37,3,0)),NA(),VLOOKUP(A27,計算600秒①!$D$5:'計算600秒①'!$J$37,3,0))) ->  | D27: =IF(ISERROR(VLOOKUP(A27,計算600秒①!$D$5:'計算600秒①'!$J$37,7,0)),NA(),VLOOKUP(A27,計算600秒①!$D$5:'計算600秒①'!$J$37,7,0)) -> 
A28: 840 | B28: =IF(ISERROR(VLOOKUP(A28,計算600秒①!$D$5:'計算600秒①'!$J$37,2,0)),NA(),VLOOKUP(A28,計算600秒①!$D$5:'計算600秒①'!$J$37,2,0)) ->  | C28: =IF(B28=0,0,IF(ISERROR(VLOOKUP(A28,計算600秒①!$D$5:'計算600秒①'!$J$37,3,0)),NA(),VLOOKUP(A28,計算600秒①!$D$5:'計算600秒①'!$J$37,3,0))) ->  | D28: =IF(ISERROR(VLOOKUP(A28,計算600秒①!$D$5:'計算600秒①'!$J$37,7,0)),NA(),VLOOKUP(A28,計算600秒①!$D$5:'計算600秒①'!$J$37,7,0)) -> 
A29: 900 | B29: =IF(ISERROR(VLOOKUP(A29,計算600秒①!$D$5:'計算600秒①'!$J$37,2,0)),NA(),VLOOKUP(A29,計算600秒①!$D$5:'計算600秒①'!$J$37,2,0)) ->  | C29: =IF(B29=0,0,IF(ISERROR(VLOOKUP(A29,計算600秒①!$D$5:'計算600秒①'!$J$37,3,0)),NA(),VLOOKUP(A29,計算600秒①!$D$5:'計算600秒①'!$J$37,3,0))) ->  | D29: =IF(ISERROR(VLOOKUP(A29,計算600秒①!$D$5:'計算600秒①'!$J$37,7,0)),NA(),VLOOKUP(A29,計算600秒①!$D$5:'計算600秒①'!$J$37,7,0)) -> 
A30: 960 | B30: =IF(ISERROR(VLOOKUP(A30,計算600秒①!$D$5:'計算600秒①'!$J$37,2,0)),NA(),VLOOKUP(A30,計算600秒①!$D$5:'計算600秒①'!$J$37,2,0)) ->  | C30: =IF(B30=0,0,IF(ISERROR(VLOOKUP(A30,計算600秒①!$D$5:'計算600秒①'!$J$37,3,0)),NA(),VLOOKUP(A30,計算600秒①!$D$5:'計算600秒①'!$J$37,3,0))) ->  | D30: =IF(ISERROR(VLOOKUP(A30,計算600秒①!$D$5:'計算600秒①'!$J$37,7,0)),NA(),VLOOKUP(A30,計算600秒①!$D$5:'計算600秒①'!$J$37,7,0)) -> 
A31: 1020 | B31: =IF(ISERROR(VLOOKUP(A31,計算600秒①!$D$5:'計算600秒①'!$J$37,2,0)),NA(),VLOOKUP(A31,計算600秒①!$D$5:'計算600秒①'!$J$37,2,0)) ->  | C31: =IF(B31=0,0,IF(ISERROR(VLOOKUP(A31,計算600秒①!$D$5:'計算600秒①'!$J$37,3,0)),NA(),VLOOKUP(A31,計算600秒①!$D$5:'計算600秒①'!$J$37,3,0))) ->  | D31: =IF(ISERROR(VLOOKUP(A31,計算600秒①!$D$5:'計算600秒①'!$J$37,7,0)),NA(),VLOOKUP(A31,計算600秒①!$D$5:'計算600秒①'!$J$37,7,0)) -> 
A32: 1080 | B32: =IF(ISERROR(VLOOKUP(A32,計算600秒①!$D$5:'計算600秒①'!$J$37,2,0)),NA(),VLOOKUP(A32,計算600秒①!$D$5:'計算600秒①'!$J$37,2,0)) ->  | C32: =IF(B32=0,0,IF(ISERROR(VLOOKUP(A32,計算600秒①!$D$5:'計算600秒①'!$J$37,3,0)),NA(),VLOOKUP(A32,計算600秒①!$D$5:'計算600秒①'!$J$37,3,0))) ->  | D32: =IF(ISERROR(VLOOKUP(A32,計算600秒①!$D$5:'計算600秒①'!$J$37,7,0)),NA(),VLOOKUP(A32,計算600秒①!$D$5:'計算600秒①'!$J$37,7,0)) -> 
A33: 1140 | B33: =IF(ISERROR(VLOOKUP(A33,計算600秒①!$D$5:'計算600秒①'!$J$37,2,0)),NA(),VLOOKUP(A33,計算600秒①!$D$5:'計算600秒①'!$J$37,2,0)) ->  | C33: =IF(B33=0,0,IF(ISERROR(VLOOKUP(A33,計算600秒①!$D$5:'計算600秒①'!$J$37,3,0)),NA(),VLOOKUP(A33,計算600秒①!$D$5:'計算600秒①'!$J$37,3,0))) ->  | D33: =IF(ISERROR(VLOOKUP(A33,計算600秒①!$D$5:'計算600秒①'!$J$37,7,0)),NA(),VLOOKUP(A33,計算600秒①!$D$5:'計算600秒①'!$J$37,7,0)) -> 
A34: 1200 | B34: =IF(ISERROR(VLOOKUP(A34,計算600秒①!$D$5:'計算600秒①'!$J$37,2,0)),NA(),VLOOKUP(A34,計算600秒①!$D$5:'計算600秒①'!$J$37,2,0)) ->  | C34: =IF(B34=0,0,IF(ISERROR(VLOOKUP(A34,計算600秒①!$D$5:'計算600秒①'!$J$37,3,0)),NA(),VLOOKUP(A34,計算600秒①!$D$5:'計算600秒①'!$J$37,3,0))) ->  | D34: =IF(ISERROR(VLOOKUP(A34,計算600秒①!$D$5:'計算600秒①'!$J$37,7,0)),NA(),VLOOKUP(A34,計算600秒①!$D$5:'計算600秒①'!$J$37,7,0)) -> 
A35: 1260 | B35: =IF(ISERROR(VLOOKUP(A35,計算600秒①!$D$5:'計算600秒①'!$J$37,2,0)),NA(),VLOOKUP(A35,計算600秒①!$D$5:'計算600秒①'!$J$37,2,0)) ->  | C35: =IF(B35=0,0,IF(ISERROR(VLOOKUP(A35,計算600秒①!$D$5:'計算600秒①'!$J$37,3,0)),NA(),VLOOKUP(A35,計算600秒①!$D$5:'計算600秒①'!$J$37,3,0))) ->  | D35: =IF(ISERROR(VLOOKUP(A35,計算600秒①!$D$5:'計算600秒①'!$J$37,7,0)),NA(),VLOOKUP(A35,計算600秒①!$D$5:'計算600秒①'!$J$37,7,0)) -> 
A36: 1320 | B36: =IF(ISERROR(VLOOKUP(A36,計算600秒①!$D$5:'計算600秒①'!$J$37,2,0)),NA(),VLOOKUP(A36,計算600秒①!$D$5:'計算600秒①'!$J$37,2,0)) ->  | C36: =IF(B36=0,0,IF(ISERROR(VLOOKUP(A36,計算600秒①!$D$5:'計算600秒①'!$J$37,3,0)),NA(),VLOOKUP(A36,計算600秒①!$D$5:'計算600秒①'!$J$37,3,0))) ->  | D36: =IF(ISERROR(VLOOKUP(A36,計算600秒①!$D$5:'計算600秒①'!$J$37,7,0)),NA(),VLOOKUP(A36,計算600秒①!$D$5:'計算600秒①'!$J$37,7,0)) -> 
A37: 1380 | B37: =IF(ISERROR(VLOOKUP(A37,計算600秒①!$D$5:'計算600秒①'!$J$37,2,0)),NA(),VLOOKUP(A37,計算600秒①!$D$5:'計算600秒①'!$J$37,2,0)) ->  | C37: =IF(B37=0,0,IF(ISERROR(VLOOKUP(A37,計算600秒①!$D$5:'計算600秒①'!$J$37,3,0)),NA(),VLOOKUP(A37,計算600秒①!$D$5:'計算600秒①'!$J$37,3,0))) ->  | D37: =IF(ISERROR(VLOOKUP(A37,計算600秒①!$D$5:'計算600秒①'!$J$37,7,0)),NA(),VLOOKUP(A37,計算600秒①!$D$5:'計算600秒①'!$J$37,7,0)) -> 
A38: 1440 | B38: =IF(ISERROR(VLOOKUP(A38,計算600秒①!$D$5:'計算600秒①'!$J$37,2,0)),NA(),VLOOKUP(A38,計算600秒①!$D$5:'計算600秒①'!$J$37,2,0)) ->  | C38: =IF(B38=0,0,IF(ISERROR(VLOOKUP(A38,計算600秒①!$D$5:'計算600秒①'!$J$37,3,0)),NA(),VLOOKUP(A38,計算600秒①!$D$5:'計算600秒①'!$J$37,3,0))) ->  | D38: =IF(ISERROR(VLOOKUP(A38,計算600秒①!$D$5:'計算600秒①'!$J$37,7,0)),NA(),VLOOKUP(A38,計算600秒①!$D$5:'計算600秒①'!$J$37,7,0)) -> 
A39: 1500 | B39: =IF(ISERROR(VLOOKUP(A39,計算600秒①!$D$5:'計算600秒①'!$J$37,2,0)),NA(),VLOOKUP(A39,計算600秒①!$D$5:'計算600秒①'!$J$37,2,0)) ->  | C39: =IF(B39=0,0,IF(ISERROR(VLOOKUP(A39,計算600秒①!$D$5:'計算600秒①'!$J$37,3,0)),NA(),VLOOKUP(A39,計算600秒①!$D$5:'計算600秒①'!$J$37,3,0))) ->  | D39: =IF(ISERROR(VLOOKUP(A39,計算600秒①!$D$5:'計算600秒①'!$J$37,7,0)),NA(),VLOOKUP(A39,計算600秒①!$D$5:'計算600秒①'!$J$37,7,0)) -> 
A40: 1560 | B40: =IF(ISERROR(VLOOKUP(A40,計算600秒①!$D$5:'計算600秒①'!$J$37,2,0)),NA(),VLOOKUP(A40,計算600秒①!$D$5:'計算600秒①'!$J$37,2,0)) ->  | C40: =IF(B40=0,0,IF(ISERROR(VLOOKUP(A40,計算600秒①!$D$5:'計算600秒①'!$J$37,3,0)),NA(),VLOOKUP(A40,計算600秒①!$D$5:'計算600秒①'!$J$37,3,0))) ->  | D40: =IF(ISERROR(VLOOKUP(A40,計算600秒①!$D$5:'計算600秒①'!$J$37,7,0)),NA(),VLOOKUP(A40,計算600秒①!$D$5:'計算600秒①'!$J$37,7,0)) -> 
A41: 1620 | B41: =IF(ISERROR(VLOOKUP(A41,計算600秒①!$D$5:'計算600秒①'!$J$37,2,0)),NA(),VLOOKUP(A41,計算600秒①!$D$5:'計算600秒①'!$J$37,2,0)) ->  | C41: =IF(B41=0,0,IF(ISERROR(VLOOKUP(A41,計算600秒①!$D$5:'計算600秒①'!$J$37,3,0)),NA(),VLOOKUP(A41,計算600秒①!$D$5:'計算600秒①'!$J$37,3,0))) ->  | D41: =IF(ISERROR(VLOOKUP(A41,計算600秒①!$D$5:'計算600秒①'!$J$37,7,0)),NA(),VLOOKUP(A41,計算600秒①!$D$5:'計算600秒①'!$J$37,7,0)) -> 
A42: 1680 | B42: =IF(ISERROR(VLOOKUP(A42,計算600秒①!$D$5:'計算600秒①'!$J$37,2,0)),NA(),VLOOKUP(A42,計算600秒①!$D$5:'計算600秒①'!$J$37,2,0)) ->  | C42: =IF(B42=0,0,IF(ISERROR(VLOOKUP(A42,計算600秒①!$D$5:'計算600秒①'!$J$37,3,0)),NA(),VLOOKUP(A42,計算600秒①!$D$5:'計算600秒①'!$J$37,3,0))) ->  | D42: =IF(ISERROR(VLOOKUP(A42,計算600秒①!$D$5:'計算600秒①'!$J$37,7,0)),NA(),VLOOKUP(A42,計算600秒①!$D$5:'計算600秒①'!$J$37,7,0)) -> 
A43: 1740 | B43: =IF(ISERROR(VLOOKUP(A43,計算600秒①!$D$5:'計算600秒①'!$J$37,2,0)),NA(),VLOOKUP(A43,計算600秒①!$D$5:'計算600秒①'!$J$37,2,0)) ->  | C43: =IF(B43=0,0,IF(ISERROR(VLOOKUP(A43,計算600秒①!$D$5:'計算600秒①'!$J$37,3,0)),NA(),VLOOKUP(A43,計算600秒①!$D$5:'計算600秒①'!$J$37,3,0))) ->  | D43: =IF(ISERROR(VLOOKUP(A43,計算600秒①!$D$5:'計算600秒①'!$J$37,7,0)),NA(),VLOOKUP(A43,計算600秒①!$D$5:'計算600秒①'!$J$37,7,0)) -> 
A44: 1800 | B44: =IF(ISERROR(VLOOKUP(A44,計算600秒①!$D$5:'計算600秒①'!$J$37,2,0)),NA(),VLOOKUP(A44,計算600秒①!$D$5:'計算600秒①'!$J$37,2,0)) ->  | C44: =IF(B44=0,0,IF(ISERROR(VLOOKUP(A44,計算600秒①!$D$5:'計算600秒①'!$J$37,3,0)),NA(),VLOOKUP(A44,計算600秒①!$D$5:'計算600秒①'!$J$37,3,0))) ->  | D44: =IF(ISERROR(VLOOKUP(A44,計算600秒①!$D$5:'計算600秒①'!$J$37,7,0)),NA(),VLOOKUP(A44,計算600秒①!$D$5:'計算600秒①'!$J$37,7,0)) -> 
A45: 600 | B45: =IF(ISERROR(VLOOKUP(A45,A11:D44,2,0)),NA(),VLOOKUP(A45,A11:D44,2,0)) -> 1.75 | C45: =IF(B45=0,0,IF(ISERROR(VLOOKUP(A45,計算600秒①!$D$5:'計算600秒①'!$J$37,3,0)),NA(),VLOOKUP(A45,計算600秒①!$D$5:'計算600秒①'!$J$37,3,0))) -> 348.151438 | D45: =IF(ISERROR(VLOOKUP(A45,A11:D44,4,0)),NA(),VLOOKUP(A45,A11:D44,4,0)) -> 0.24
A46: 試験結果
B47: 実測累積吸水量(ml) | G47: =IF(B45="","",B45) -> 1.75
B48: 1ｍ2当たりの累積吸水量(ml/m2) | G48: =IF(C45="","",ROUND(C45,2)) -> 348.15
B49: 10分時点での表面吸水速度:P600(ml/m2/s) | G49: =IF(D45="","",ROUND(D45,2)) -> 0.24
A50: 評価指標※ (ml/m2/s) | D50: 0.25以下 ： 良 0.25～0.50： 一般 0.50以上 ： 劣 | G50: =IF(G49="","",IF(G49>=0.5,"劣",IF(G49<0.5,IF(G49>=0.25,"一般","良")))) -> 良
A51: ※：評価指標は、構造物表層のコンクリート品質と耐久性検証システム研究小委員会(JSCE335委員会)第二期成果報告書 およびシンポジウム講演概要集「3.4 表面吸水試験」によった。

Sheet Sheet1 (hidden)

Sheet 計算600秒① (hidden)
A1: 前回
A2: 測定時間 | B2: 測定値 | D2: 測定時間 | E2: 累積吸水量 | F2: 1m2当たりの 累積吸水量 | G2: 区間 吸水速度 | H2: 区間 測定時間 log | I2: 区間 吸水速度 log | J2: 吸水速度 | L2: 600秒試験結果
A3: 秒 | B3: ｍｌ | D3: 秒 | E3: ｍｌ | F3: ml/m2 | G3: ml/m2/sec | H3: sec | I3: ml/m2/sec | J3: ml/m2/sec | L3: Ｙ＝ＡＸ+Ｂ
A4: =IF(測定値入力シート!AF9="","",測定値入力シート!AF9) -> 0 | B4: =IF(測定値入力シート!AG9="","",測定値入力シート!AG9) -> 0 | D4: 0 | E4: 0 | F4: 0 | L4: A | M4: Ｂ | N4: 寄与率Ｒ2 | O4: 相関係数ｒ
A5: =IF(測定値入力シート!AF10="","",測定値入力シート!AF10) -> 60 | B5: =IF(測定値入力シート!AG10="","",測定値入力シート!AG10) -> 0.65 | D5: =IF(A5="","",A5) -> 60 | E5: =IF(B5="","",B5) -> 0.65 | F5: =IF(E5="","",E5/((0.08^2*PI())/4)) -> 129.3133913 | G5: =IF(E5="","",F5/D5) -> 2.155223188 | H5: =IF(E5="","",LOG(D5,10)) -> 1.77815125 | I5: =IF(E5="","",LOG(G5,10)) -> 0.3334922509 | J5: =IF(E5="","",ROUND($L$14*D5^(-$M$14),2)) -> 0.92 | L5: =SLOPE(I5:I37,H5:H37) -> -0.5782288803 | M5: =INTERCEPT(I5:I37,H5:H37) -> 1.367306886 | N5: =RSQ(I5:I37,H5:H37) -> 0.9994881752 | O5: =SQRT(N5) -> 0.9997440549
A6: =IF(測定値入力シート!AF11="","",測定値入力シート!AF11) -> 120 | B6: =IF(測定値入力シート!AG11="","",測定値入力シート!AG11) -> 0.9 | D6: =IF(A6="","",A6) -> 120 | E6: 0.9 | F6: 179.049311 | G6: =IF(E6="","",F6/D6) -> 1.492077591 | H6: 2.079181246 | I6: =IF(E6="","",LOG(G6,10)) -> 0.173791408 | J6: =IF(E6="","",ROUND($L$14*D6^(-$M$14),2)) -> 0.62
A7: =IF(測定値入力シート!AF12="","",測定値入力シート!AF12) -> 180 | B7: =IF(測定値入力シート!AG12="","",測定値入力シート!AG12) -> 1.05 | D7: 180 | E7: 1.05 | F7: 208.8908628 | G7: =IF(E7="","",F7/D7) -> 1.160504793 | H7: =IF(E7="","",LOG(D7,10)) -> 2.255272505 | I7: 0.06464693862 | J7: 0.49
A8: =IF(測定値入力シート!AF13="","",測定値入力シート!AF13) -> 240 | B8: =IF(測定値入力シート!AG13="","",測定値入力シート!AG13) -> 1.18 | D8: 240 | E8: 1.18 | F8: 234.7535411 | G8: 0.9781397544 | H8: 2.380211242 | I8: -0.009599089756 | J8: 0.41 | L8: V＝ｋ*ｔ（-ｍ）
A9: =IF(測定値入力シート!AF14="","",測定値入力シート!AF14) -> 300 | B9: =IF(測定値入力シート!AG14="","",測定値入力シート!AG14) -> 1.3 | D9: 300 | E9: 1.3 | F9: 258.6267825 | G9: 0.8620892751 | H9: 2.477121255 | I9: -0.06444775776 | J9: 0.36 | L9: ｋ | M9: ｍ
A10: =IF(測定値入力シート!AF15="","",測定値入力シート!AF15) -> 360 | B10: =IF(測定値入力シート!AG15="","",測定値入力シート!AG15) -> 1.4 | D10: 360 | E10: 1.4 | F10: 278.5211504 | G10: 0.7736698623 | H10: 2.556302501 | I10: -0.1114443204 | J10: 0.33 | L10: =10^M5 -> 23.29736939 | M10: =-L5 -> 0.5782288803
A11: =IF(測定値入力シート!AF16="","",測定値入力シート!AF16) -> 420 | B11: =IF(測定値入力シート!AG16="","",測定値入力シート!AG16) -> 1.48 | D11: 420 | E11: 1.48 | F11: 294.4366447 | G11: 0.7010396303 | H11: 2.62324929 | I11: -0.1542574304 | J11: 0.3
A12: =IF(測定値入力シート!AF17="","",測定値入力シート!AF17) -> 480 | B12: =IF(測定値入力シート!AG17="","",測定値入力シート!AG17) -> 1.57 | D12: 480 | E12: 1.57 | F12: 312.3415758 | G12: 0.6507116163 | H12: 2.681241237 | I12: -0.1866114403 | J12: 0.28
A13: =IF(測定値入力シート!AF18="","",測定値入力シート!AF18) -> 540 | B13: =IF(測定値入力シート!AG18="","",測定値入力シート!AG18) -> 1.67 | D13: 540 | E13: 1.67 | F13: 332.2359437 | G13: 0.6152517476 | H13: 2.73239376 | I13: -0.210947144 | J13: 0.26 | L13: a | M13: n | N13: 10min WAF
A14: =IF(測定値入力シート!AF19="","",測定値入力シート!AF19) -> 600 | B14: =IF(測定値入力シート!AG19="","",測定値入力シート!AG19) -> 1.75 | D14: 600 | E14: 1.75 | F14: 348.151438 | G14: 0.5802523967 | H14: 2.77815125 | I14: -0.236383057 | J14: =IF(E14="","",ROUND($L$14*D14^(-$M$14),2)) -> 0.24 | L14: =IF(ISERROR(IF(E5="","",ROUND(L10*(-M10+1),3))),"",IF(E5="","",ROUND(L10*(-M10+1),3))) -> 9.826 | M14: =IF(ISERROR(IF(E5="","",ROUND(M10,3))),"",IF(E5="","",ROUND(M10,3))) -> 0.578 | N14: =IF(ISERROR(IF(E5="","",ROUND(L14*600^(-M14),2))),"",IF(E5="","",ROUND(L14*600^(-M14),2))) -> 0.24
A15: =IF(測定値入力シート!AF20="","",測定値入力シート!AF20) ->  | B15: =IF(測定値入力シート!AG20="","",測定値入力シート!AG20) ->  | G15: =IF(E15="","",F15/D15) ->  | H15: =IF(E15="","",LOG(D15,10)) ->  | I15: =IF(E15="","",LOG(G15,10)) -> 
A16: =IF(測定値入力シート!AF21="","",測定値入力シート!AF21) ->  | B16: =IF(測定値入力シート!AG21="","",測定値入力シート!AG21) -> 
A17: =IF(測定値入力シート!AF22="","",測定値入力シート!AF22) ->  | B17: =IF(測定値入力シート!AG22="","",測定値入力シート!AG22) -> 
A18: =IF(測定値入力シート!AF23="","",測定値入力シート!AF23) ->  | B18: =IF(測定値入力シート!AG23="","",測定値入力シート!AG23) ->  | L18: 1.75
A19: =IF(測定値入力シート!AF24="","",測定値入力シート!AF24) ->  | B19: =IF(測定値入力シート!AG24="","",測定値入力シート!AG24) ->  | L19: 348.15
A20: =IF(測定値入力シート!AF25="","",測定値入力シート!AF25) ->  | B20: =IF(測定値入力シート!AG25="","",測定値入力シート!AG25) ->  | L20: 0.31
A21: =IF(測定値入力シート!AF26="","",測定値入力シート!AF26) ->  | B21: =IF(測定値入力シート!AG26="","",測定値入力シート!AG26) -> 
A22: =IF(測定値入力シート!AF27="","",測定値入力シート!AF27) ->  | B22: =IF(測定値入力シート!AG27="","",測定値入力シート!AG27) -> 
A23: =IF(測定値入力シート!AF28="","",測定値入力シート!AF28) ->  | B23: =IF(測定値入力シート!AG28="","",測定値入力シート!AG28) -> 
A24: =IF(測定値入力シート!AF29="","",測定値入力シート!AF29) ->  | B24: =IF(測定値入力シート!AG29="","",測定値入力シート!AG29) -> 
A25: =IF(測定値入力シート!AF30="","",測定値入力シート!AF30) ->  | B25: =IF(測定値入力シート!AG30="","",測定値入力シート!AG30) -> 
A26: =IF(測定値入力シート!AF31="","",測定値入力シート!AF31) ->  | B26: =IF(測定値入力シート!AG31="","",測定値入力シート!AG31) -> 
A27: =IF(測定値入力シート!AF32="","",測定値入力シート!AF32) ->  | B27: =IF(測定値入力シート!AG32="","",測定値入力シート!AG32) -> 
A28: =IF(測定値入力シート!AF33="","",測定値入力シート!AF33) ->  | B28: =IF(測定値入力シート!AG33="","",測定値入力シート!AG33) -> 
A29: =IF(測定値入力シート!AF34="","",測定値入力シート!AF34) ->  | B29: =IF(測定値入力シート!AG34="","",測定値入力シート!AG34) -> 
A30: =IF(測定値入力シート!AF35="","",測定値入力シート!AF35) ->  | B30: =IF(測定値入力シート!AG35="","",測定値入力シート!AG35) -> 
A31: =IF(測定値入力シート!AF36="","",測定値入力シート!AF36) ->  | B31: =IF(測定値入力シート!AG36="","",測定値入力シート!AG36) -> 
A32: =IF(測定値入力シート!AF37="","",測定値入力シート!AF37) ->  | B32: =IF(測定値入力シート!AG37="","",測定値入力シート!AG37) -> 
A33: =IF(測定値入力シート!AF38="","",測定値入力シート!AF38) ->  | B33: =IF(測定値入力シート!AG38="","",測定値入力シート!AG38) ->  | G33: =IF(E33="","",F33/D33) ->  | H33: =IF(E33="","",LOG(D33,10)) ->  | I33: =IF(E33="","",LOG(G33,10)) -> 
A34: =IF(測定値入力シート!AF39="","",測定値入力シート!AF39) ->  | B34: =IF(測定値入力シート!AG39="","",測定値入力シート!AG39) ->  | G34: =IF(E34="","",F34/D34) ->  | H34: =IF(E34="","",LOG(D34,10)) ->  | I34: =IF(E34="","",LOG(G34,10)) ->  | J34: =IF(E34="","",ROUND($L$14*D34^(-$M$14),2)) -> 
A35: =IF(測定値入力シート!AF40="","",測定値入力シート!AF40) ->  | B35: =IF(測定値入力シート!AG40="","",測定値入力シート!AG40) ->  | G35: =IF(E35="","",F35/D35) ->  | H35: =IF(E35="","",LOG(D35,10)) ->  | I35: =IF(E35="","",LOG(G35,10)) ->  | J35: =IF(E35="","",ROUND($L$14*D35^(-$M$14),2)) -> 
A36: =IF(測定値入力シート!AF41="","",測定値入力シート!AF41) ->  | B36: =IF(測定値入力シート!AG41="","",測定値入力シート!AG41) ->  | G36: =IF(E36="","",F36/D36) ->  | H36: =IF(E36="","",LOG(D36,10)) ->  | I36: =IF(E36="","",LOG(G36,10)) ->  | J36: =IF(E36="","",ROUND($L$14*D36^(-$M$14),2)) -> 
A37: =IF(測定値入力シート!AF42="","",測定値入力シート!AF42) ->  | B37: =IF(測定値入力シート!AG42="","",測定値入力シート!AG42) ->  | G37: =IF(E37="","",F37/D37) ->  | H37: =IF(E37="","",LOG(D37,10)) ->  | I37: =IF(E37="","",LOG(G37,10)) ->  | J37: =IF(E37="","",ROUND($L$14*D37^(-$M$14),2)) -> 
